Cogmind - Beta 15 @@@ ROGUE MODE // 2025.07.10 @ 11:33:43 Player: Florist Result: Destroyed by O9-XVD(h) with Bolt Gun Performance ------------- Evolutions (0) 0 Regions Visited (4) 800 Robots Destroyed (36) 180 Value Destroyed (1149) 1149 Prototype IDs (24) 480 Alien Tech Used (0) 0 Bonus (929) 929 TOTAL SCORE: 3538 Bonus ------- Follower Combat Kills 129 Registered with UFD 300 Met Optimus in HQ 500 Cogmind --------- Core Integrity 0/250 Matter 300/300 Energy 95/100 System Corruption 0% Temperature Cool (2) Movement Treading (152) Location -8/Scraptown Parts ------- > --- POWER (1) -------- (None) > --- PROPULSION (2) --- Improved Treads Advanced Treads > --- UTILITY (2) ------ Large Storage Unit Experimental Signal Interpreter > --- WEAPON (2) ------- Companion Sword > --- INVENTORY (15) --- Meta Core Carbon-fiber Leg Carbon-fiber Leg Carbon-fiber Leg Carbon-fiber Leg Deep Structural Scanner Advanced Sensor Array Hardened Heavy Armor Plating Improved Heavy Armor Plating Makeshift Light Armor Plating Improved System Restoration Module Vortex Trap Peak State ------------ > --- POWER ------------ Deuterium Engine > --- PROPULSION ------- Improved Treads Advanced Treads > --- UTILITY ---------- Large Storage Unit Experimental Signal Interpreter > --- WEAPON ----------- Multitool Companion Sword > --- INVENTORY -------- Meta Core Carbon-fiber Leg Carbon-fiber Leg Carbon-fiber Leg Carbon-fiber Leg Deep Structural Scanner Advanced Sensor Array Hardened Heavy Armor Plating Improved Heavy Armor Plating Makeshift Light Armor Plating Improved System Restoration Module [Rating: 31] Favorites ----------- Power Ion Engine Engine Ion Engine Propulsion Light Treads Treads Light Treads Utility Large Storage Unit Device Seismic Detector Storage Large Storage Unit Processor Experimental Signal Interpreter Protection Makeshift Light Armor Plating Weapon Subdweller Machine Gun Energy Gun EM Pulse Gun Energy Cannon Subdweller Beam Cannon Ballistic Gun Subdweller Machine Gun Launcher Subdweller Shrapnel Launcher Special Weapon Multitool Slashing Weapon Companion Sword Special Melee Weapon Datajack Build | -11 -10 -10 -8 -8 ------- Run | Yrd Mat Sub Rec Scr Slots Evolved . | . . . . . Power . | . . . . . Propulsion . | . . . . . Utility . | . . . . . Weapon . | . . . . . Parts Attached 39 | 7 1 18 3 10 Power 3 | 1 . . 1 1 Engine 3 | 1 . . 1 1 Core . | . . . . . Reactor . | . . . . . Propulsion 10 | 2 . 3 . 5 Treads 10 | 2 . 3 . 5 Leg . | . . . . . Wheel . | . . . . . Hover . | . . . . . Flight . | . . . . . Utility 7 | 2 1 1 1 2 Device 2 | 1 . . . 1 Storage 2 | 1 1 . . . Processor 1 | . . . . 1 Hackware . | . . . . . Protection 2 | . . 1 1 . Artifact . | . . . . . Weapon 19 | 2 . 14 1 2 Energy Gun 7 | 2 . 5 . . Energy Cannon 2 | . . 2 . . Ballistic Gun 4 | . . 3 1 . Ballistic Cannon . | . . . . . Launcher 3 | . . 3 . . Special Weapon 1 | . . . . 1 Impact Weapon . | . . . . . Slashing Weapon 1 | . . . . 1 Piercing Weapon . | . . . . . Special Melee Weapon 1 | . . 1 . . Unidentified Prototypes 1 | . . . . 1 Parts Lost 7 | . . 5 . 2 Power 2 | . . 1 . 1 Propulsion . | . . . . . Utility . | . . . . . Weapon 5 | . . 4 . 1 Highest Loss Streak 2 | . . 2 . 1 To Critical Strikes . | . . . . . Average Backups 12 | 1 4 13 13 12 Power 1 | . 1 1 1 . Propulsion 1 | 1 2 1 1 2 Utility 4 | . 1 4 4 4 Weapon 3 | . . 3 4 3 Tool/Special . | . . . . . Unused Backups 22 | . . 6 . 16 Power 2 | . . 2 . . Propulsion 7 | . . 2 . 5 Utility 7 | . . . . 7 Weapon 5 | . . 2 . 3 Tool/Special 1 | . . . . 1 Average Slot Usage (%) 91 | . 100 96 98 76 Engine 12 | . 14 12 12 11 Treads 27 | . 28 28 28 27 Device 1 | . 14 2 . . Storage 13 | . 14 14 14 13 Protection 10 | . . 11 14 6 Energy Gun 12 | . 28 22 . . Ballistic Gun 9 | . . 2 27 12 Peak Build Rating 31 | 7 7 18 21 31 Average Rating 15 | 5 7 13 19 17 On Entrance 10 | . 7 7 17 21 Naked Turns 56 | . . . . 56 Heaviest Build 45 | 15 30 45 41 39 Greatest Support 45 | 40 40 40 40 45 Greatest Overweight (x) 1 | . . 1 1 1 Average Overweight (x) . | . . . . . Largest Inventory Capacity 15 | 8 15 15 15 15 Average Capacity 14 | 7 11 15 15 14 Most Carried 15 | 4 6 15 15 15 Average Carried 13 | 2 4 14 14 13 Final Capacity 15 | 8 15 15 15 15 Final Carried 15 | 4 6 15 15 14 Class Distribution -------------------- 52% | Mutant 32% | Commander-Mutant 15% | Derelict-Mutant Dominant Class ---------------- Mutant | -10/Materials Mutant | -10/Subcaves Derelict-Mutant | -8/Recycling Commander-Mutant | -8/Scraptown Resources | -11 -10 -10 -8 -8 ----------- Run | Yrd Mat Sub Rec Scr Matter Collected 1010 | 248 27 352 258 125 Remotely . | . . . . . Salvage Created 1428 | 108 27 864 359 70 Parts 96 | 8 3 66 19 . Haulers Intercepted . | . . . . . Recyclers Shooed 1 | . . . 1 . Parts Field Recycled . | . . . . . Retrieved Matter . | . . . . . Parts Self-Destructed 23 | . . 23 . . Prevented . | . . . . . Kills | -11 -10 -10 -8 -8 ------- Run | Yrd Mat Sub Rec Scr Combat Hostiles Destroyed 29 | . . 21 7 1 Melee 1 | . . . . 1 Guns 23 | . . 16 7 . Cannons 2 | . . 2 . . AOE 3 | . . 3 . . Classes Destroyed 13 | 2 1 5 4 1 Tunneler 2 | 2 . . . . Recycler 2 | 1 . . 1 . Turret 2 | . . 2 . . Watcher 1 | . 1 . . . Swarmer 5 | . . 5 . . Grunt 1 | . . 1 . . Brawler 1 | . . . 1 . Duelist 1 | . . . 1 . Protector 1 | . . . 1 . Sentry 4 | . . 1 3 . Demolisher 1 | . . . 1 . Subdweller 14 | . . 14 . . Scrapper 1 | . . . . 1 Best Kill Streak 3 | 2 1 3 3 1 Combat Bots Only 3 | . . 3 3 1 Max Kills in Single Turn 2 | 1 1 2 1 1 Gunslinging . | . . . . . Exploded 2 | . . 2 . . Melee 1 | . . . . 1 Uniques/NPCs Destroyed . | . . . . . Combat | -11 -10 -10 -8 -8 -------- Run | Yrd Mat Sub Rec Scr Hostile Shots Fired 112 | . . 80 16 16 Missed 32 | . . 27 3 2 Hits 80 | . . 53 13 14 Melee 1 | . . . 1 . Projectile 79 | . . 53 12 14 AOE 3 | . . 2 . 1 Critical Strikes 3 | . . 1 2 . Damage Taken 1461 | . . 1106 212 143 Core 256 | . . 214 . 42 Absorbed by Shields 37 | . . . . 37 Core Remaining (%) 100 | 100 . . . . Volleys Fired 190 | 4 3 163 20 . Largest 2 | 2 2 2 2 . Hottest 140 | 80 80 140 60 . Shots Fired 266 | 8 6 216 36 . Gun 236 | 8 6 186 36 . Cannon 20 | . . 20 . . Launcher 10 | . . 10 . . Special . | . . . . . Kinetic 65 | . . 29 36 . Thermal 144 | . . 144 . . Explosive . | . . . . . Electromagnetic 57 | 8 6 43 . . Robot Hit Streak 19 | 4 1 19 6 . Robot Miss Streak 5 | 1 5 5 3 . Penetration Max . | . . . . . Secondary Targets 1 | . . 1 . . Max Gunslinging Chain 1 | . . 1 . . Shots Hit Robots 132 | 6 1 100 21 4 Core Hits 57 | 3 1 43 9 1 Critical Kills . | . . . . . Critical Parts Destroyed . | . . . . . Critical Strikes 2 | . . 1 1 . Destroy 2 | . . 1 1 . Melee Attacks 7 | . . 2 . 5 Impact . | . . . . . Slashing 5 | . . . . 5 Piercing . | . . . . . Sneak Attacks 2 | . . 2 . . Combat Hostiles . | . . . . . Follow-up Attacks . | . . . . . Damage Inflicted 3187 | 97 24 2474 465 127 Guns 2177 | 97 24 1591 465 . Cannons 188 | . . 188 . . Explosions 695 | . . 695 . . Melee 127 | . . . . 127 Ramming . | . . . . . Kinetic 1274 | . . 809 465 . Thermal 1164 | . . 1164 . . Explosive . | . . . . . Electromagnetic 622 | 97 24 501 . . Impact . | . . . . . Slashing 127 | . . . . 127 Piercing . | . . . . . Highest Corruption . | . . . . . Average Corruption . | . . . . . Corruption Purged . | . . . . . Corruption Blocked . | . . . . . Overload Shots . | . . . . . Overflow Damage 82 | . . 68 . 14 Projectiles . | . . . . . Explosions 68 | . . 68 . . Melee 14 | . . . . 14 Knockbacks . | . . . . . Impact . | . . . . . Kinetic . | . . . . . Secondary . | . . . . . Self-Inflicted Damage 62 | . . 62 . . Shots 2 | . . 2 . . Rammed . | . . . . . Targets Rammed . | . . . . . Kicked . | . . . . . Crushed . | . . . . . Highest Temperature 198 | 36 36 198 153 4 Average Temperature 51 | 16 18 56 53 4 Received Heat Transfer 245 | . . 135 63 47 Siege Activations . | . . . . . Martial Activations . | . . . . . Shielding Activations . | . . . . . Robots Disrupted . | . . . . . Combat Hostiles . | . . . . . Robots Corrupted . | . . . . . Combat Hostiles . | . . . . . Parts Fried 2 | 1 . 1 . . Impact Corruptions . | . . . . . Robots Melted . | . . . . . Combat Hostiles . | . . . . . Parts Melted 2 | . . . . 2 Heat Transferred 1434 | . . 1434 . . Parts Sabotaged . | . . . . . Parts Stolen . | . . . . . Parts Stripped . | . . . . . Power Chain Reactions . | . . . . . Alert | -11 -10 -10 -8 -8 ------- Run | Yrd Mat Sub Rec Scr Maximum Alert Level . | . . . . . Low Security (%) 100 | 100 100 . 100 . Level 1 . | . . . . . Level 2 . | . . . . . Level 3 . | . . . . . Level 4 . | . . . . . Level 5 . | . . . . . High Security . | . . . . . Max Security . | . . . . . Peak Influence 138 | 5 7 . 138 . Initial 91 | . . . 91 . Average 31 | . . . 35 . Influence Increases 708 | 15 7 250 436 . Destroy 0b10 Robot/C 320 | . . 180 140 . Destroy 0b10 Robot/NC 30 | 15 5 . 10 . Destroy Leader 12 | . 2 10 . . Allied During Kill 7 | . . . 7 . Successful Hack 36 | . . . 36 . Select Force Hacks 240 | . . . 240 . Destroy Structure 3 | . . . 3 . Lose Combat Pursuer 60 | . . 60 . . Influence Decreases 708 | 15 7 60 619 7 Entered New Map 106 | . . . 99 7 Time Decay 572 | 15 7 30 520 . Lost Part 30 | . . 30 . . Squads Dispatched 1 | . 1 . . . Investigation . | . . . . . Extermination . | . . . . . Reinforcement 1 | . 1 . . . Assault . | . . . . . Garrison . | . . . . . Intercept . | . . . . . Searches Triggered . | . . . . . Construction Impeded . | . . . . . Haulers Reinforced . | . . . . . Active Scanning Responses . | . . . . . Cargo Convoy Interrupts . | . . . . . Stealth | -11 -10 -10 -8 -8 --------- Run | Yrd Mat Sub Rec Scr Distress Signals . | . . . . . Communications Jammed . | . . . . . Distress Signals . | . . . . . Times Spotted 47 | . 1 27 6 13 Peak Tracking Total 8 | . 1 4 1 8 Tactical Retreats 2 | . . 2 . . Traps | -11 -10 -10 -8 -8 ------- Run | Yrd Mat Sub Rec Scr Traps Triggered 2 | . . 2 . . Indirectly . | . . . . . Trap Hack Attempts 58 | . . 58 . . Triggered . | . . . . . Disarmed 1 | . . 1 . . Reprogrammed 5 | . . 5 . . Reused . | . . . . . Traps Extracted . | . . . . . Installed 1 | . . . . 1 Triggered . | . . . . . Most Traps Carried 2 | . . . . 2 Machines | -11 -10 -10 -8 -8 ---------- Run | Yrd Mat Sub Rec Scr Machines Disabled 5 | . . 5 . . Max in Single Turn 3 | . . 3 . . Machines Repaired . | . . . . . Machines Dismantled . | . . . . . Machines Sabotaged . | . . . . . Overloaded Fab Kills . | . . . . . Hacking | -11 -10 -10 -8 -8 --------- Run | Yrd Mat Sub Rec Scr Machines Accessed 23 | . 1 4 14 4 Terminals 6 | . . . 6 . Fabricators . | . . . . . Repair Stations . | . . . . . Recycling Units 9 | . 1 . 8 . Scanalyzers . | . . . . . Garrison Access . | . . . . . Total Hacks 78 | . 1 15 39 23 Successful 63 | . 1 15 24 23 Failed 15 | . . . 15 . Catastrophic 1 | . . . 1 . Database Lockouts . | . . . . . Manual 24 | . . . 24 . Terminals 17 | . . . 17 . Fabricators . | . . . . . Repair Stations . | . . . . . Recycling Units 23 | . 1 . 22 . Scanalyzers . | . . . . . Garrison Access . | . . . . . Terminal Hacks 39 | . . 15 1 23 Record 33 | . . 12 . 21 Open Door 2 | . . 1 . 1 Branch Access Points 1 | . . . 1 . Proto ID Catalog 2 | . . 1 . 1 Release Object 1 | . . 1 . . Fabricator Hacks . | . . . . . Repair Station Hacks . | . . . . . Recycling Unit Hacks 7 | . 1 . 6 . Retrieve Components 7 | . 1 . 6 . Scanalyzer . | . . . . . Garrison Access Hacks . | . . . . . Unauthorized Hacks 17 | . . . 17 . Terminals 9 | . . . 9 . Botnet 4 | . . . 4 . Skim 5 | . . . 5 . Fabricators . | . . . . . Repair Stations . | . . . . . Recycling Units 8 | . . . 8 . Tunnel 8 | . . . 8 . Scanalyzers . | . . . . . Garrison Access . | . . . . . Data Cores Recovered . | . . . . . Used . | . . . . . Hacking Detections 9 | . . . 9 . Full Trace Events . | . . . . . Feedback Events . | . . . . . Feedback Blocked . | . . . . . Robot Schematics Acquired . | . . . . . Robots Built . | . . . . . Authchips . | . . . . . Time . | . . . . . Total Robot Build Rating . | . . . . . Part Schematics Acquired . | . . . . . Parts Built . | . . . . . Authchips . | . . . . . Time . | . . . . . Total Part Build Rating . | . . . . . Parts Repaired . | . . . . . Time . | . . . . . Parts Recycled . | . . . . . Recycled Matter . | . . . . . Retrieved Matter . | . . . . . Retrieved Components 16 | . 1 . 15 . Parts Scanalyzed . | . . . . . Part Schematics Acquired . | . . . . . Parts Damaged . | . . . . . Bothacking | -11 -10 -10 -8 -8 ------------ Run | Yrd Mat Sub Rec Scr Used RIF Installer . | . . . . . Robots Hacked 2 | . . 2 . . Non-combat 2 | . . 2 . . Combat . | . . . . . Robot Hacks Applied 2 | . . 2 . . parse_system 2 | . . 2 . . Relay Couplers Released . | . . . . . Fabnet Peak Effective % . | . . . . . Robots Rewired 11 | . . . 11 . Allies Hacked . | . . . . . Hacks Repelled . | . . . . . Allies | -11 -10 -10 -8 -8 -------- Run | Yrd Mat Sub Rec Scr Total Allies 11 | . . . 11 . Largest Group 11 | . . . 11 11 Highest-Rated Group 190 | . . . 190 190 Highest-Rated Ally 27 | . . . 27 27 Total Orders 8 | . . . 6 2 STAY 2 | . . . 1 1 FOLLOW 3 | . . . 2 1 AID 1 | . . . 1 . COLLECT 2 | . . . 2 . Ally Attacks 18 | . . . 3 15 Total Damage 262 | . . . 46 216 Kills 4 | . . . 1 3 Allies Corrupted . | . . . . . Allies Melted 3 | . . . . 3 Intel | -11 -10 -10 -8 -8 ------- Run | Yrd Mat Sub Rec Scr Active Infowar (turns) 1345 | 54 170 1096 . 25 Structural 25 | . . . . 25 Seismic 1320 | 54 170 1096 . . Robot Analysis Total . | . . . . . Derelict Logs Recovered 5 | . . 2 . 3 Drone Launches . | . . . . . Drone Recoveries . | . . . . . Exploration | -11 -10 -10 -8 -8 ------------- Run | Yrd Mat Sub Rec Scr Turns Passed 12906 | 115 170 6655 2568 3398 Spaces Moved 5724 | 51 99 2404 1038 2132 Core 136 | 4 . . . 132 Treads 5588 | 47 99 2404 1038 2000 Legs . | . . . . . Wheels . | . . . . . Hover . | . . . . . Flight . | . . . . . Fastest Speed 50 | 50 160 160 160 50 Average Speed 165 | 151 160 161 206 150 Slowest Speed 260 | 160 160 240 260 225 Overloaded Moves . | . . . . . Propulsion Burnouts . | . . . . . Robots Hopped . | . . . . . Potential Cave-ins 6 | . . 6 . . Cave-ins Triggered . | . . . . . Exploration Rate (%) 61 | 5 20 95 98 87 Regions Visited 4 Branch Regions 3 Pre-discovered Areas 20 | . . 4 10 6 Known Exits Taken 1 | . . . 1 . Unknown Exits Taken 3 | 1 1 1 . . Scrap Searched 20 | . . 13 . 7 Spaces Dug 14 | . . 14 . . Terrain Destroyed 146 | . . 143 3 . Melee . | . . . . . Projectile 28 | . . 25 3 . AOE 118 | . . 118 . . Terrain Rammed . | . . . . . Walls Destroyed . | . . . . . Machines Disabled . | . . . . . Actions | -11 -10 -10 -8 -8 --------- Run | Yrd Mat Sub Rec Scr Total 8883 | 77 105 4952 1426 2323 Wait 2547 | 12 . 2255 158 122 Move 5720 | 50 98 2403 1037 2132 Hop . | . . . . . Pick Up 57 | 4 2 26 2 23 Fast Attach 21 | 7 . 4 2 8 Attach 15 | . . 9 2 4 Detach 2 | . . . . 2 Swap 16 | . 1 12 2 1 Drop 48 | . 1 20 2 25 Fire 190 | 4 3 163 20 . Melee 7 | . . 2 . 5 Ram . | . . . . . Kick . | . . . . . Crush . | . . . . . Escape Stasis . | . . . . . Rewire 201 | . . . 201 . Trap 59 | . . 58 . 1 Miscellaneous . | . . . . . Route ------- -11/Scrapyard -10/Materials -10/Subcaves (discovered 4 exits: [*Mat x2] / *Rec / *Scr) -8/Recycling (discovered 2 exits: *Fac / *Scr) -8/Scraptown (discovered 2 exits: *Fac x2) History --------- Turn | Location | Event 8 | -11/Scrapyard | Discovered new exit (range 15) 116 | -11/Scrapyard | Entered Materials 227 | -10/Materials | Discovered new exit (range 13) 286 | -10/Materials | Entered Subcaves 287 | -10/Subcaves | Approached by a straggling Scientist 308 | -10/Subcaves | Build established: Mutant 447 | -10/Subcaves | Discovered new exit (range 12) 605 | -10/Subcaves | Visited Clippyterm 609 | -10/Subcaves | Learned location of Extension (-4) 736 | -10/Subcaves | Visited 4L-MR0's lab 764 | -10/Subcaves | Found Meta Core 842 | -10/Subcaves | Shifting Twisted Machinery released Battle Rifle 1914 | -10/Subcaves | A swath of the cavern ceiling suddenly collapsed 3795 | -10/Subcaves | Shifting Twisted Machinery released Sub. Shrapnel Launcher 3795 | -10/Subcaves | Learned location of Zion (-6) 3795 | -10/Subcaves | Met a Zionite searching for "candidates" 3800 | -10/Subcaves | Shifting Twisted Machinery released Spk. Treads 4121 | -10/Subcaves | Learned location of Mines (-10) 4330 | -10/Subcaves | A swath of the cavern ceiling suddenly collapsed 4784 | -10/Subcaves | Shifting Twisted Machinery released Sub. Beam Cannon 4811 | -10/Subcaves | Core integrity fell below 50% 4857 | -10/Subcaves | Shifting Twisted Machinery released Flamer 5446 | -10/Subcaves | Shifting Twisted Machinery released Sub. Monowheel 6106 | -10/Subcaves | Ambushed by Subdweller buried in earth 6280 | -10/Subcaves | Discovered new exit (range 7) 6912 | -10/Subcaves | Discovered new exit (range 12) 6921 | -10/Subcaves | Core integrity fell below 20% 6941 | -10/Subcaves | Entered Recycling 7110 | -8/Recycling | Build established: Derelict-Mutant 7760 | -8/Recycling | Scanned before Scraplab entrance 8320 | -8/Recycling | Learned Factory emergency access door positions 8343 | -8/Recycling | Identified exit to Scraptown 8343 | -8/Recycling | Identified exit to Factory 8364 | -8/Recycling | Learned location of 1 exit from Extension 8365 | -8/Recycling | Learned location of 1 exit from Storage 8372 | -8/Recycling | Learned Storage trap positions 8387 | -8/Recycling | Learned location of 1 exit from Recycling 9068 | -8/Recycling | Build established: Commander-Mutant 9459 | -8/Recycling | Entered Scraplab 9509 | -8/Recycling | Entered Scraptown 9509 | -8/Scraptown | Accompanied by 11 allies 9737 | -8/Scraptown | Discovered exit to Factory (range 11) 9825 | -8/Scraptown | Heard Great Nut preacher, LISTEN AND RECITE! 9841 | -8/Scraptown | Visited Cave Peace 9869 | -8/Scraptown | Visited IN-MT5's Study 9885 | -8/Scraptown | Visited Bundlers 9965 | -8/Scraptown | Visited Comm Corps 10015 | -8/Scraptown | Visited Cyclists 10037 | -8/Scraptown | Visited Assassins FH 10061 | -8/Scraptown | Visited Awakened 10237 | -8/Scraptown | Visited UFD Registry 10237 | -8/Scraptown | Registered with UFD as "Gearbucket" 10287 | -8/Scraptown | Visited Derelict Rescue Squad 10319 | -8/Scraptown | Visited Science Guys 10376 | -8/Scraptown | Visited Science Testing Area 10402 | -8/Scraptown | Visited Cartography Club 10419 | -8/Scraptown | Visited Observation Area 10442 | -8/Scraptown | Visited Supply Room 10467 | -8/Scraptown | Visited DA-N13 Charitable Foundation 10474 | -8/Scraptown | Found DCF Scrap (27 items) 10536 | -8/Scraptown | Delivered Scrap Shield to a Scientist 10659 | -8/Scraptown | Visited Infowarlord's Domain 10683 | -8/Scraptown | Visited Sword Containment 11030 | -8/Scraptown | Learned location of Recycling (-8) 11030 | -8/Scraptown | Learned location of Upper Caves (-5) 11030 | -8/Scraptown | Learned 4 Mines zone layouts 11030 | -8/Scraptown | Learned location of Warlord (-4) 11030 | -8/Scraptown | Learned 16 Research zone layouts 11030 | -8/Scraptown | Learned 8 Lower Caves zone layouts 11030 | -8/Scraptown | Learned 16 Lower Caves zone layouts 11030 | -8/Scraptown | Learned 8 Upper Caves zone layouts 11030 | -8/Scraptown | Learned 12 Upper Caves zone layouts 11030 | -8/Scraptown | Learned 16 Upper Caves zone layouts 11030 | -8/Scraptown | Learned 16 Proximity Caves zone layouts 11030 | -8/Scraptown | Learned 4 Armory zone layouts 11030 | -8/Scraptown | Learned location of 2 exits from Lower Caves 11030 | -8/Scraptown | Learned location of 3 exits from Lower Caves 11051 | -8/Scraptown | Found Deep Structural Scanner 11299 | -8/Scraptown | Scanned Subdweller tech in exchange for log data 11305 | -8/Scraptown | Learned Factory security intel 11307 | -8/Scraptown | Learned Factory non-interactive machine intel 11820 | -8/Scraptown | Found Exp. Signal Interpreter 12341 | -8/Scraptown | Entered Cyclist Reading Room 12771 | -8/Scraptown | Met Optimus 12771 | -8/Scraptown | Accepted into 0bPrime 12840 | -8/Scraptown | Civil war broke out across Scraptown 12907 | -8/Scraptown | Destroyed by O9-XVD(h) with Bolt Gun Last Messages --------------- 12871_ Bolt penetrates E6-70T(E). 12872_ SL-ASZ(c): "It's really too bad I left my Metacruncher at home. That would scare a few away." 12872_ Bolt penetrates LU-5N3(E). 12886_ E6-70T(E) cannibalizes Hvy. Battle Rifle to repair Ovr. Barrage Gun. 12886_ Bolt penetrates E6-70T(E). 12886_ E6-70T(E) suffers critical hit (Burn). 12889_ Bolt penetrates Wall. 12891_ Acquired 35 matter. 12892_ Bolt penetrates Bruiser 3a. 12892_ Multitool destroyed. 12894_ Bolt penetrates Bruiser 3a. 12894_ Bruiser 3a suffers critical hit (Destroy). 12894_ Lgt. Deuterium Engine melted. 12894_ Mak. Salvage Targeting Computer melted. 12894_ EA-1V3(j) destroyed. 12897_ Bruiser 3a destroyed. 12899_ Penetrated by Bolt. 12904_ Destroyed Lgt. Nuclear Core. 12905_ Penetrated by Bolt. Map ----- +----------------------------------------------------+ | | | | | | | | | | | | | | | | | ?????????????????????????????????????????????????? | | ?????????????????????????????????????????????????? | | ?????????????????????????????????????????????????? | | ?????????????????????????????????????????????????? | | ?????????????????????????????????????????????????? | | ?????????????????????????????????????????????????? | | ?????????????????????????????????????????????????? | | ?????????????????????????????????????????????????? | | ?????????????????????????????????????????????????? | | ?????????????????????????????????????????????????? | | ?????????????????????????????????????????????????? | | ??????????????????????????#####??????????????????? | | ?????????????????????????##!= #??????????????????? | | ?????????????????####????#==[!#??????????????????? | | ????????????????## ##???#[=<=#??????????????????? | | ?????"" ##!!"#### i#####=gj!##?????????????????? | | ????? a[i%%!hz=*=%######????????????? | | ????? ==ai=%!@!%!!=######????????????? | | ???????????###### ![################????????????? | | ????????????????## #################????????????? | | #######???????#### ## # # ####????????????? | | """"""#???????#### ##### # # ## ####????????????? | | X """#???????#### # ##### # ####????????????? | | """"############ # # # # ####????????????? | | "!""# ## # # ## #### #####????????????? | | """"# ## # # # # #####????????????? | | ""# ## # ####X# #####????????????? | | # ## # ## #### # #####????????????? | | "" " # ## # # # ####????????????? | | "" " # ## ###### ## #######????????????? | | "# ## # ####????????????? | | # ## # ####????????????? | | ########### ##### ## ##############????????????? | | ########### ##### !# ##############????????????? | | """"""""""" """"" !" "## """"""""""????????????? | | !% "## " "????????????? | | [* / "## "???????????????????? | | "## "???????????????????? | | [! "## "???????????????????? | | "???????????????????? | | """""""""""""""""" "## """"????????????????? | | """""""""""""""""" "## ????????????????? | +----------------------------------------------------+ Best States ------------- Heat Dissipation 25 Energy Generation 14 Energy Capacity 275 Matter Stores 300 Matter Capacity 300 Sight Range 16 Terrain Scan Density 10 Armor Coverage 100 Evasion (%) 50 Recoil Reduction 2 Item Schematics ----------------- None Robot Schematics ------------------ None Fabricated ------------ Nothing Repaired ---------- Nothing Alien Tech Used ----------------- None Achievements -------------- None Challenges ------------ None Game ------ Seed BombMediumCyclogen Manual? 0 Play Time 00:45:08 Cumulative 192.0 hours Start 2025.07.10 @ 10:43:59 End 2025.07.10 @ 11:33:43 Sessions 1 Manual Loads 0 Difficulty Rogue Special Mode None Game No. 170 Rogue 170 Adventurer 0 Explorer 0 Win Type - Total 10 Types 5/0/3/2/0/0/0/0/0/0 Lore% 73 Gallery% 68 Achievement% 65 Wizard Run 0 Options --------- Layout 1 ASCII 0 Keyboard 0 Movement Numpad Keybinds 0 Fullscreen 1 Font 32/SmallcapsGlow Map View 77x35 Zoom Use 0% Tactical HUD 1 Map Filters NONE Filters NONE Steam 1 RUN: 5adbfbe1-1e2e-4137-813e-8d526caccc4d